fUSD/lending_fUSD_20250623
["ID","MTS","AMOUNT","RATE_DAILY","PERIOD"]
[367229486,1750708451672,204.0,0.00018993,2]
[367229487,1750708474822,219.19,0.00026477,120]
[367229496,1750708640107,500.0,0.0002739,120]
[367229504,1750708811608,204.0,0.00019945,2]
[367229802,1750708896559,150.0,0.00019896,2]
[367229803,1750708896784,150.0,0.00019984,2]
[367230166,1750709200227,175.55,0.00013699,2]
[367230442,1750709431793,-150.0,0.00020116,2]
[367230443,1750709431803,-145.80682,0.00020187,2]
[367230444,1750709431899,-29.74318,0.00020187,2]
[367230445,1750709431908,-150.0,0.00020369,2]
[367230446,1750709431918,-150.0,0.00020408,2]
[367230447,1750709431928,-666.0,0.00020437,2]
[367230448,1750709431937,-150.0,0.00020452,2]
[367230449,1750709431947,-8.94471898,0.00020457,2]
[367230450,1750709431959,-280.21888779,0.00020457,2]
[367230451,1750709431975,-536.02595649,0.00020457,2]
[367230507,1750709438580,-5250.5,0.00020457,2]
[367230508,1750709438591,-1024.5,0.00020457,2]
[367230509,1750709438603,-1386.14110658,0.00020457,2]
[367230510,1750709438615,-403.20229772,0.00020457,2]
[367230511,1750709438651,-3425.91230633,0.00020457,2]
[367230512,1750709438663,-500.0,0.00020457,2]
[367230513,1750709438687,-7565.87472611,0.00020457,2]
[367230514,1750709438697,-776.70007048,0.00020473,2]
[367230515,1750709438707,-250.0,0.00020537,2]
[367230516,1750709438716,-200.0,0.00020561,2]
[367230517,1750709438726,-150.0,0.00020591,2]
[367230518,1750709438736,-1000.0,0.00020637,2]
[367230520,1750709438746,-150.0,0.00020696,2]
[367230522,1750709438757,-150.0,0.00020783,2]
[367230524,1750709438766,-246.32557759,0.000208,2]
[367230526,1750709438775,-150.0,0.00020828,2]
[367230528,1750709438784,-1000.0,0.00020884,2]
[367230530,1750709438796,-2751.0,0.00020904,2]
[367230532,1750709438805,-150.0,0.00020934,2]
[367230534,1750709438815,-250.0,0.00020934,2]
[367230536,1750709438824,-204.0,0.00020948,2]
[367230538,1750709438834,-200.0,0.00020953,7]
[367230540,1750709438843,-150.0,0.00021046,2]
[367230542,1750709438853,-166.73,0.00021113,2]
[367230544,1750709438862,-804.91,0.00021137,2]
[367230546,1750709438871,-150.0,0.00021152,2]
[367230548,1750709438881,-219.19,0.00021182,2]
[367230550,1750709438890,-150.0,0.00021191,2]
[367230552,1750709438899,-706.0,0.0002127,2]
[367230554,1750709438908,-150.0,0.00021306,2]
[367230556,1750709438917,-150.0,0.00021337,2]
[367230558,1750709438927,-1000.0,0.00021375,2]
[367230560,1750709438936,-150.0,0.00021378,2]
[367230562,1750709438945,-150.0,0.00021406,2]
[367230564,1750709438954,-150.0,0.00021418,2]
[367230566,1750709438963,-152.75,0.00021677,2]
[367230568,1750709438972,-152.75,0.00021688,2]
[367230570,1750709438982,-152.75,0.00021699,2]
[367230572,1750709438991,-152.75,0.0002171,2]
[367230574,1750709439000,-152.75,0.00021721,2]
[367230576,1750709439009,-152.75,0.00021732,2]
[367230578,1750709439019,-150.0,0.0002174,2]
[367230580,1750709439028,-134.76962582,0.00021743,2]
[367230665,1750709439830,-17.98037418,0.00021743,2]
[367230667,1750709439841,-150.0,0.00021749,2]
[367230670,1750709439856,-163.08,0.00021752,2]
[367230672,1750709439868,-152.75,0.00021753,2]
[367230673,1750709439878,-152.75,0.00021764,2]
[367230676,1750709439888,-152.75,0.00021775,2]
[367230678,1750709439897,-151.0,0.00021781,2]
[367230679,1750709439907,-300.0,0.00021781,2]
[367230681,1750709439916,-693.66631086,0.00021781,2]
[367230684,1750709439926,-500.0,0.00021781,2]
[367230686,1750709439936,-207.4,0.00021781,2]
[367230687,1750709439945,-152.75,0.00021786,2]
[367230689,1750709439955,-150.0,0.00021851,2]
[367230691,1750709439964,-17744.27891495,0.00021875,2]
[367230695,1750709439989,-732.44427922,0.00021875,2]
[367230697,1750709440001,-2950.93871045,0.00021875,2]
[367230698,1750709440010,-219.51130462,0.00021875,2]
[367230699,1750709440019,-228.2826,0.00021875,2]
[367230700,1750709440029,-2500.0,0.00021876,2]
[367230701,1750709440039,-5000.0,0.00021876,2]
[367230702,1750709440054,-13251.44366209,0.00021876,2]
[367230703,1750709440064,-193.35081377,0.00021876,2]
[367230704,1750709440073,-219.51130452,0.00021932,2]
[367230705,1750709440083,-150.0,0.00021946,2]
[367230706,1750709440092,-3645.1,0.0002195,2]
[367230707,1750709440102,-182.0,0.00021965,2]
[367230708,1750709440111,-259.86160455,0.00021974,2]
[367230714,1750709440254,-230.13839545,0.00021974,2]
[367230716,1750709440264,-490.0,0.00021974,2]
[367230718,1750709440273,-490.0,0.00021974,2]
[367230720,1750709440283,-490.0,0.00021974,2]
[367230722,1750709440295,-518.9,0.00021974,2]
[367230724,1750709440305,-684.14,0.00021974,2]
[367230726,1750709440315,-490.0,0.00021974,2]
[367230728,1750709440325,-490.0,0.00021974,2]
[367230730,1750709440335,-490.0,0.00021975,2]
[367230732,1750709440344,-1000.0,0.00021975,2]
[367230734,1750709440353,-490.0,0.00021975,2]
[367230736,1750709440363,-333.46149932,0.00021975,2]
[367230738,1750709440372,-490.0,0.00021975,2]
[367230740,1750709440382,-490.0,0.00021975,2]
[367230742,1750709440391,-490.0,0.00021975,2]
[367230744,1750709440400,-490.0,0.00021975,2]
[367230746,1750709440413,-415.91540684,0.00021975,2]
[367230748,1750709440423,-490.0,0.00021975,2]
[367230750,1750709440432,-490.0,0.00021975,2]
[367230752,1750709440441,-490.0,0.00021975,2]
[367230754,1750709440451,-490.0,0.00021975,2]
[367230755,1750709440461,-490.0,0.00021975,2]
[367230758,1750709440471,-490.0,0.00021975,2]
[367230760,1750709440480,-490.0,0.00021975,2]
[367230762,1750709440490,-490.0,0.00021975,2]
[367230764,1750709440499,-490.0,0.00021975,2]
[367230766,1750709440509,-490.0,0.00021975,2]
[367230768,1750709440519,-490.0,0.00021975,2]
[367230770,1750709440528,-490.0,0.00021975,2]
[367230772,1750709440538,-490.0,0.00021975,2]
[367230774,1750709440551,-490.712363,0.00021975,2]
[367230777,1750709440562,-490.0,0.00021975,2]
[367230779,1750709440571,-490.0,0.00021975,2]
[367230781,1750709440581,-505.04,0.00021975,2]
[367230783,1750709440591,-490.0,0.00021975,2]
[367230785,1750709440600,-490.0,0.00021975,2]
[367230787,1750709440609,-490.0,0.00021975,2]
[367230789,1750709440619,-635.96,0.00021975,2]
[367230791,1750709440628,-177.29687337,0.00021975,2]
[367230793,1750709440638,-250.0,0.00021975,2]
[367230795,1750709440647,-490.0,0.00021975,2]
[367230797,1750709440656,-490.0,0.00021975,2]
[367230799,1750709440666,-490.0,0.00021975,2]
[367230801,1750709440675,-490.0,0.00021975,2]
[367230803,1750709440684,-490.0,0.00021975,2]
[367230805,1750709440693,-808.67,0.00021975,2]
[367230807,1750709440703,-490.0,0.00021975,2]
[367230809,1750709440713,-490.0,0.00021975,2]
[367230811,1750709440722,-490.0,0.00021975,2]
[367230813,1750709440732,-490.0,0.00021975,2]
[367230815,1750709440742,-490.0,0.00021975,2]
[367230817,1750709440751,-490.0,0.00021975,2]
[367230819,1750709440760,-490.0,0.00021975,2]
[367230821,1750709440770,-490.0,0.00021975,2]
[367230823,1750709440780,-490.0,0.00021975,2]
[367230825,1750709440789,-490.0,0.00021975,2]
[367230827,1750709440802,-490.0,0.00021975,2]
[367230829,1750709440811,-490.0,0.00021975,2]
[367230831,1750709440821,-490.0,0.00021975,2]
[367230833,1750709440829,-490.0,0.00021975,2]
[367230835,1750709440840,-490.0,0.00021975,2]
[367230837,1750709440850,-490.0,0.00021975,2]
[367230839,1750709440859,-867.8,0.00021975,2]
[367230841,1750709440868,-499.67,0.00021975,2]
[367230843,1750709440878,-572.9,0.00021975,2]
[367230845,1750709440888,-215.51556551,0.00021975,2]
[367230847,1750709440897,-531.45,0.00021975,2]
[367230849,1750709440907,-491.48028437,0.00021975,2]
[367230851,1750709440916,-655.78,0.00021975,2]
[367230853,1750709440925,-490.0,0.00021975,2]
[367230855,1750709440935,-490.0,0.00021975,2]
[367230857,1750709440944,-490.0,0.00021975,2]
[367230859,1750709440953,-490.0,0.00021975,2]
[367230861,1750709440962,-490.0,0.00021975,2]
[367230863,1750709440971,-490.0,0.00021975,2]
[367230865,1750709440981,-490.0,0.00021975,2]
[367230876,1750709441068,-490.0,0.00021975,2]
[367230878,1750709441078,-526.12444941,0.00021975,2]
[367230880,1750709441088,-535.33,0.00021975,2]
[367230882,1750709441098,-490.0,0.00021975,2]
[367230884,1750709441108,-490.0,0.00021975,2]
[367230886,1750709441117,-490.0,0.00021975,2]
[367230888,1750709441126,-490.0,0.00021975,2]
[367230890,1750709441135,-683.66,0.00021975,2]
[367230892,1750709441144,-490.0,0.00021975,2]
[367230894,1750709441153,-982.43,0.00021975,2]
[367230896,1750709441163,-490.0,0.00021975,2]
[367230898,1750709441172,-490.0,0.00021975,2]
[367230900,1750709441183,-663.71,0.00021975,2]
[367230902,1750709441201,-490.0,0.00021975,2]
[367230904,1750709441225,-210.86165495,0.00021975,2]
[367230906,1750709441248,-218.77048822,0.00021975,2]
[367230908,1750709441258,-490.0,0.00021975,2]
[367230910,1750709441268,-490.0,0.00021975,2]
[367230912,1750709441278,-576.29,0.00021975,2]
[367230914,1750709441287,-490.57589849,0.00021975,2]
[367230916,1750709441298,-490.0,0.00021975,2]
[367230918,1750709441308,-490.0,0.00021975,2]
[367230920,1750709441318,-681.37,0.00021975,2]
[367230922,1750709441328,-543.56003654,0.00021975,2]
[367230924,1750709441338,-490.0,0.00021975,2]
[367230926,1750709441347,-490.0,0.00021975,2]
[367230928,1750709441357,-495.83476991,0.00021975,2]
[367230930,1750709441368,-490.0,0.00021975,2]
[367230932,1750709441378,-888.63,0.00021975,2]
[367230934,1750709441389,-490.0,0.00021975,2]
[367230936,1750709441399,-210.0,0.00021975,2]
[367230938,1750709441409,-490.0,0.00021975,2]
[367230941,1750709441421,-500.0,0.00021975,2]
[367230942,1750709441430,-500.0,0.00021975,2]
[367230945,1750709441440,-500.0,0.00021975,2]
[367230947,1750709441450,-500.0,0.00021975,2]
[367230949,1750709441459,-500.0,0.00021975,2]
[367230951,1750709441469,-500.0,0.00021975,2]
[367230953,1750709441479,-500.0,0.00021975,2]
[367230955,1750709441490,-649.3288757,0.00021975,2]
[367230956,1750709441501,-500.0,0.00021975,2]
[367230958,1750709441511,-490.0,0.00021975,2]
[367230960,1750709441521,-490.0,0.00021975,2]
[367230962,1750709441531,-522.44119276,0.00021975,2]
[367230964,1750709441540,-490.0,0.00021975,2]
[367230966,1750709441551,-490.0,0.00021975,2]
[367230968,1750709441561,-776.37,0.00021975,2]
[367230970,1750709441571,-631.28,0.00021975,2]
[367230972,1750709441580,-490.0,0.00021975,2]
[367230974,1750709441590,-490.0,0.00021975,2]
[367230976,1750709441599,-490.0,0.00021975,2]
[367230978,1750709441609,-610.86,0.00021975,2]
[367230980,1750709441618,-219.752004,0.00021975,2]
[367230982,1750709441627,-490.0,0.00021975,2]
[367230984,1750709441637,-562.73,0.00021975,2]
[367230986,1750709441647,-490.0,0.00021975,2]
[367230988,1750709441656,-213.67803298,0.00021975,2]
[367230990,1750709441665,-490.0,0.00021975,2]
[367230992,1750709441674,-762.837125,0.00021975,2]
[367230994,1750709441683,-490.0,0.00021975,2]
[367230996,1750709441693,-490.0,0.00021975,2]
[367230998,1750709441702,-490.0,0.00021975,2]
[367231000,1750709441712,-553.33,0.00021975,2]
[367231002,1750709441721,-490.0,0.00021975,2]
[367231004,1750709441730,-490.0,0.00021975,2]
[367231006,1750709441740,-490.0,0.00021975,2]
[367231008,1750709441750,-410.396547,0.00021975,2]
[367231010,1750709441759,-798.35,0.00021975,2]
[367231012,1750709441769,-153.552939,0.00021975,2]
[367231014,1750709441778,-490.0,0.00021975,2]
[367231016,1750709441788,-635.77,0.00021975,2]
[367231018,1750709441799,-490.45554866,0.00021975,2]
[367231020,1750709441808,-490.0,0.00021975,2]
[367231022,1750709441817,-550.53,0.00021975,2]
[367231024,1750709441827,-490.0,0.00021975,2]
[367231026,1750709441837,-490.0,0.00021975,2]
[367231028,1750709441846,-490.0,0.00021975,2]
[367231030,1750709441855,-490.0,0.00021975,2]
[367231032,1750709441865,-660.7,0.00021975,2]
[367231034,1750709441874,-1380.59,0.00021975,2]
[367231036,1750709441884,-490.0,0.00021975,2]
[367231038,1750709441895,-490.0,0.00021975,2]
[367231040,1750709441904,-490.0,0.00021975,2]
[367231042,1750709441913,-490.0,0.00021975,2]
[367231044,1750709441922,-490.0,0.00021975,2]
[367231046,1750709441931,-490.0,0.00021975,2]
[367231048,1750709441940,-490.0,0.00021975,2]
[367231050,1750709441950,-490.0,0.00021975,2]
[367231052,1750709441959,-490.0,0.00021975,2]
[367231054,1750709441968,-490.0,0.00021975,2]
[367231056,1750709441977,-155.237111,0.00021975,2]
[367231058,1750709441987,-200.0,0.00021975,2]
[367231060,1750709441995,-490.0,0.00021975,2]
[367231062,1750709442005,-490.0,0.00021975,2]
[367231064,1750709442014,-490.0,0.00021975,2]
[367231065,1750709442023,-490.0,0.00021975,2]
[367231068,1750709442032,-490.0,0.00021975,2]
[367231069,1750709442043,-490.0,0.00021975,2]
[367231071,1750709442052,-490.0,0.00021975,2]
[367231074,1750709442061,-38.93508341,0.00021975,2]
[367231078,1750709442090,-451.06491659,0.00021975,2]
[367231079,1750709442099,-490.0,0.00021975,2]
[367231082,1750709442109,-490.0,0.00021975,2]
[367231084,1750709442121,-900.68,0.00021975,2]
[367231086,1750709442130,-534.82097583,0.00021975,2]
[367231088,1750709442139,-828.64,0.00021975,2]
[367231090,1750709442148,-490.0,0.00021975,2]
[367231092,1750709442157,-490.0,0.00021975,2]
[367231094,1750709442167,-490.0,0.00021975,2]
[367231096,1750709442176,-215.21506419,0.00021975,2]
[367231098,1750709442189,-480.50493581,0.00021975,2]
[367231100,1750709442198,-490.0,0.00021975,2]
[367231102,1750709442207,-490.0,0.00021975,2]
[367231104,1750709442216,-550.46,0.00021975,2]
[367231106,1750709442226,-490.0,0.00021975,2]
[367231108,1750709442235,-490.0,0.00021975,2]
[367231110,1750709442245,-476.10548316,0.00021975,2]
[367231112,1750709442254,-490.0,0.00021975,2]
[367231114,1750709442263,-174.01238902,0.00021975,2]
[367231116,1750709442272,-490.0,0.00021975,2]
[367231118,1750709442282,-490.0,0.00021975,2]
[367231120,1750709442291,-193.19673802,0.00021975,2]
[367231122,1750709442303,-490.0,0.00021975,2]
[367231124,1750709442312,-490.0,0.00021975,2]
[367231126,1750709442321,-490.0,0.00021975,2]
[367231128,1750709442330,-736.37,0.00021975,2]
[367231130,1750709442339,-490.0,0.00021975,2]
[367231132,1750709442349,-490.0,0.00021975,2]
[367231134,1750709442359,-490.0,0.00021975,2]
[367231136,1750709442368,-490.0,0.00021975,2]
[367231138,1750709442378,-490.0,0.00021975,2]
[367231140,1750709442386,-490.0,0.00021975,2]
[367231142,1750709442395,-490.0,0.00021975,2]
[367231144,1750709442405,-490.0,0.00021975,2]
[367231145,1750709442418,-490.0,0.00021975,2]
[367231147,1750709442428,-490.0,0.00021975,2]
[367231149,1750709442438,-905.93,0.00021975,2]
[367231151,1750709442447,-490.0,0.00021975,2]
[367231153,1750709442457,-490.0,0.00021975,2]
[367231156,1750709442467,-490.0,0.00021975,2]
[367231157,1750709442476,-490.0,0.00021975,2]
[367231160,1750709442487,-403.92553064,0.00021975,2]
[367231162,1750709442496,-697.78,0.00021975,2]
[367231165,1750709442506,-766.71,0.00021975,2]
[367231167,1750709442515,-490.0,0.00021975,2]
[367231168,1750709442524,-490.0,0.00021975,2]
[367231170,1750709442533,-721.32,0.00021975,2]
[367231173,1750709442547,-490.0,0.00021975,2]
[367231174,1750709442556,-490.0,0.00021975,2]
[367231176,1750709442565,-500.0,0.00021975,2]
[367231178,1750709442574,-879.04,0.00021975,2]
[367231180,1750709442583,-490.0,0.00021975,2]
[367231182,1750709442592,-490.0,0.00021975,2]
[367231184,1750709442601,-498.52,0.00021975,2]
[367231186,1750709442611,-490.0,0.00021975,2]
[367231188,1750709442621,-490.0,0.00021975,2]
[367231190,1750709442630,-490.0,0.00021975,2]
[367231195,1750709442640,-490.0,0.00021975,2]
[367231199,1750709442649,-490.0,0.00021975,2]
[367231203,1750709442658,-452.02120147,0.00021975,2]
[367231207,1750709442668,-490.0,0.00021975,2]
[367231212,1750709442678,-490.0,0.00021975,2]
[367231215,1750709442687,-711.73,0.00021975,2]
[367231219,1750709442698,-490.0,0.00021975,2]
[367231223,1750709442707,-557.69,0.00021975,2]
[367231227,1750709442716,-490.0,0.00021975,2]
[367231231,1750709442725,-262.191141,0.00021975,2]
[367231235,1750709442734,-461.11610354,0.00021975,2]
[367231238,1750709442743,-490.0,0.00021975,2]
[367231241,1750709442752,-812.41,0.00021975,2]
[367231244,1750709442762,-490.0,0.00021975,2]
[367231247,1750709442771,-1696.37,0.00021975,2]
[367231251,1750709442781,-490.0,0.00021975,2]
[367231253,1750709442790,-490.0,0.00021975,2]
[367231256,1750709442801,-490.0,0.00021975,2]
[367231259,1750709442810,-490.0,0.00021975,2]
[367231262,1750709442820,-490.0,0.00021975,2]
[367231265,1750709442829,-5.85690379,0.00021975,2]
[367231267,1750709442842,-512.08309621,0.00021975,2]
[367231269,1750709442852,-490.0,0.00021975,2]
[367231271,1750709442861,-165.54556138,0.00021975,2]
[367231273,1750709442870,-490.0,0.00021975,2]
[367231275,1750709442879,-490.0,0.00021975,2]
[367231277,1750709442889,-520.45,0.00021975,2]
[367231279,1750709442898,-490.0,0.00021975,2]
[367231281,1750709442908,-490.0,0.00021975,2]
[367231283,1750709442917,-844.03,0.00021975,2]
[367231285,1750709442926,-490.0,0.00021975,2]
[367231287,1750709442936,-656.78,0.00021975,2]
[367231289,1750709442945,-721.62,0.00021975,2]
[367231291,1750709442954,-490.0,0.00021975,2]
[367231293,1750709442964,-593.93,0.00021975,2]
[367231294,1750709442973,-842.84,0.00021975,2]
[367231296,1750709442982,-1014.29,0.00021975,2]
[367231298,1750709442991,-490.0,0.00021975,2]
[367231301,1750709443004,-490.0,0.00021975,2]
[367231303,1750709443013,-490.0,0.00021975,2]
[367231305,1750709443022,-912.0,0.00021975,2]
[367231306,1750709443032,-694.68,0.00021975,2]
[367231307,1750709443041,-490.0,0.00021975,2]
[367231308,1750709443053,-490.0,0.00021975,2]
[367231309,1750709443062,-500.0,0.00021975,2]
[367231310,1750709443071,-490.0,0.00021975,2]
[367231311,1750709443081,-939.45,0.00021975,2]
[367231312,1750709443090,-520.71,0.00021975,2]
[367231313,1750709443100,-490.0,0.00021975,2]
[367231314,1750709443109,-490.0,0.00021975,2]
[367231315,1750709443118,-490.0,0.00021975,2]
[367231316,1750709443127,-591.64,0.00021975,2]
[367231317,1750709443136,-490.0,0.00021975,2]
[367231318,1750709443145,-490.0,0.00021975,2]
[367231319,1750709443155,-1368.76,0.00021975,2]
[367231320,1750709443164,-1794.63,0.00021975,2]
[367231321,1750709443173,-490.0,0.00021975,2]
[367231322,1750709443182,-570.82,0.00021975,2]
[367231324,1750709443192,-825.91,0.00021975,2]
[367231325,1750709443201,-1632.97,0.00021975,2]
[367231327,1750709443210,-4947.04,0.00021975,2]
[367231329,1750709443219,-871.46,0.00021975,2]
[367231331,1750709443229,-2074.05,0.00021975,2]
[367231333,1750709443239,-888.58,0.00021975,2]
[367231335,1750709443248,-491.07709627,0.00021975,2]
[367231337,1750709443260,-527.44461191,0.00021975,2]
[367231339,1750709443269,-490.0,0.00021975,2]
[367231341,1750709443278,-381.70838832,0.00021975,2]
[367231343,1750709443291,-108.29161168,0.00021975,2]
[367231345,1750709443301,-805.34,0.00021975,2]
[367231347,1750709443311,-621.14,0.00021975,2]
[367231349,1750709443319,-490.0,0.00021975,2]
[367231351,1750709443329,-212.81100995,0.00021975,2]
[367231353,1750709443338,-2965.33,0.00021975,2]
[367231355,1750709443348,-1208.01,0.00021975,2]
[367231357,1750709443357,-1088.75,0.00021975,2]
[367231359,1750709443366,-490.0,0.00021975,2]
[367231361,1750709443375,-490.0,0.00021975,2]
[367231363,1750709443384,-490.0,0.00021975,2]
[367231365,1750709443393,-490.0,0.00021975,2]
[367231367,1750709443403,-678.78,0.00021975,2]
[367231369,1750709443417,-886.68,0.00021975,2]
[367231371,1750709443426,-671.19,0.00021975,2]
[367231373,1750709443436,-632.42,0.00021975,2]
[367231375,1750709443445,-578.87,0.00021975,2]
[367231377,1750709443454,-495.48,0.00021975,2]
[367231379,1750709443464,-491.11470012,0.00021975,2]
[367231381,1750709443473,-490.0,0.00021975,2]
[367231383,1750709443488,-1334.07,0.00021975,2]
[367231385,1750709443498,-490.0,0.00021975,2]
[367231387,1750709443508,-612.56,0.00021975,2]
[367231389,1750709443517,-658.6,0.00021975,2]
[367231391,1750709443527,-490.0,0.00021975,2]
[367231393,1750709443537,-531.61,0.00021975,2]
[367231395,1750709443548,-490.0,0.00021975,2]
[367231397,1750709443558,-490.0,0.00021975,2]
[367231399,1750709443568,-775.08,0.00021975,2]
[367231401,1750709443577,-111.4099174,0.00021975,2]
[367231462,1750709444165,-201.0,0.00020948,2]
[367231464,1750709444175,-378.5900826,0.00021975,2]
[367231466,1750709444184,-490.0,0.00021975,2]
[367231468,1750709444193,-490.0,0.00021975,2]
[367231470,1750709444202,-490.0,0.00021975,2]
[367231472,1750709444212,-490.0,0.00021975,2]
[367231475,1750709444222,-316.51724291,0.00021975,2]
[367231476,1750709444231,-489.19166547,0.00021975,2]
[367231483,1750709444285,-0.80833453,0.00021975,2]
[367231485,1750709444297,-500.0,0.00021975,2]
[367231487,1750709444307,-736.15,0.00021975,2]
[367231489,1750709444316,-490.0,0.00021975,2]
[367231491,1750709444325,-490.0,0.00021975,2]
[367231493,1750709444335,-687.01,0.00021975,2]
[367231495,1750709444344,-490.0,0.00021975,2]
[367231497,1750709444354,-490.0,0.00021975,2]
[367231499,1750709444363,-929.0,0.00021975,2]
[367231501,1750709444373,-740.25,0.00021975,2]
[367231503,1750709444382,-154.6004586,0.00021975,2]
[367231505,1750709444392,-1064.31,0.00021975,2]
[367231507,1750709444401,-499.03,0.00021975,2]
[367231509,1750709444411,-5958.4,0.00021975,2]
[367231510,1750709444423,-650.11,0.00021975,2]
[367231512,1750709444432,-490.0,0.00021975,2]
[367231514,1750709444442,-490.0,0.00021975,2]
[367231516,1750709444452,-490.0,0.00021975,2]
[367231518,1750709444461,-727.79,0.00021975,2]
[367231520,1750709444471,-504.69,0.00021975,2]
[367231522,1750709444480,-490.0,0.00021975,2]
[367231524,1750709444489,-490.0,0.00021975,2]
[367231526,1750709444500,-1062.22,0.00021975,2]
[367231528,1750709444510,-490.0,0.00021975,2]
[367231530,1750709444519,-490.0,0.00021975,2]
[367231532,1750709444529,-490.0,0.00021975,2]
[367231534,1750709444539,-490.0,0.00021975,2]
[367231536,1750709444551,-769.26,0.00021975,2]
[367231538,1750709444561,-490.0,0.00021975,2]
[367231540,1750709444575,-490.0,0.00021975,2]
[367231542,1750709444584,-490.0,0.00021975,2]
[367231544,1750709444594,-490.0,0.00021975,2]
[367231546,1750709444603,-606.64,0.00021975,2]
[367231548,1750709444612,-490.0,0.00021975,2]
[367231550,1750709444622,-490.0,0.00021975,2]
[367231552,1750709444631,-1917.23,0.00021975,2]
[367231554,1750709444640,-720.89,0.00021975,2]
[367231556,1750709444649,-490.0,0.00021975,2]
[367231558,1750709444658,-650.67,0.00021975,2]
[367231560,1750709444668,-517.36693272,0.00021975,2]
[367231562,1750709444677,-1868.04,0.00021975,2]
[367231564,1750709444686,-2182.27,0.00021975,2]
[367231566,1750709444695,-490.0,0.00021975,2]
[367231568,1750709444705,-490.0,0.00021975,2]
[367231570,1750709444714,-490.0,0.00021975,2]
[367231572,1750709444724,-490.0,0.00021975,2]
[367231574,1750709444733,-681.07,0.00021975,2]
[367231576,1750709444742,-495.33,0.00021975,2]
[367231578,1750709444752,-490.0,0.00021975,2]
[367231580,1750709444761,-805.02,0.00021975,2]
[367231582,1750709444770,-654.2,0.00021975,2]
[367231584,1750709444779,-490.0,0.00021975,2]
[367231586,1750709444788,-1797.0,0.00021975,2]
[367231588,1750709444801,-844.73,0.00021975,2]
[367231590,1750709444810,-952.21,0.00021975,2]
[367231592,1750709444819,-493.65217078,0.00021975,2]
[367231594,1750709444829,-943.63,0.00021975,2]
[367231596,1750709444838,-692.79,0.00021975,2]
[367231598,1750709444847,-1041.41,0.00021975,2]
[367231600,1750709444856,-1359.73,0.00021975,2]
[367231602,1750709444865,-510.22,0.00021975,2]
[367231604,1750709444875,-936.55,0.00021975,2]
[367231606,1750709444884,-490.0,0.00021975,2]
[367231608,1750709444893,-490.26640777,0.00021975,2]
[367231610,1750709444902,-490.0,0.00021975,2]
[367231612,1750709444911,-490.0,0.00021975,2]
[367231614,1750709444921,-490.0,0.00021975,2]
[367231616,1750709444930,-675.06,0.00021975,2]
[367231618,1750709444939,-700.23,0.00021975,2]
[367231620,1750709444949,-490.0,0.00021975,2]
[367231622,1750709444958,-490.0,0.00021975,2]
[367231624,1750709444967,-3473.02,0.00021975,2]
[367231626,1750709444977,-213.49958687,0.00021975,2]
[367231628,1750709444987,-490.0,0.00021975,2]